bitfinex/quotes_BTCUSD_20250320
["timestamp","ask_amount","ask_price","bid_price","bid_amount"]
[1742489346334,0.79750603,83956.0,83955.0,1e-07]
[1742489347330,0.80250603,83956.0,83955.0,1e-07]
[1742489347532,0.630284,83938.0,83937.0,0.0001691]
[1742489348110,0.56886311,83938.0,83937.0,0.0001691]
[1742489348737,0.64816311,83938.0,83937.0,1e-07]
[1742489349147,0.81383814,83938.0,83937.0,1e-07]
[1742489349767,0.81683814,83938.0,83937.0,1e-07]
[1742489349948,0.82183814,83938.0,83937.0,1e-07]
[1742489350156,0.83037899,83938.0,83937.0,1e-07]
[1742489350371,0.83637899,83938.0,83937.0,1e-07]
[1742489350811,0.83337899,83938.0,83937.0,1e-07]
[1742489351271,0.83637899,83938.0,83937.0,1e-07]
[1742489353227,0.82183814,83938.0,83937.0,1e-07]
[1742489354253,0.81769988,83938.0,83937.0,1e-07]
[1742489354907,0.79815903,83938.0,83937.0,1e-07]
[1742489355308,0.79515903,83938.0,83937.0,1e-07]
[1742489355432,0.80015903,83938.0,83937.0,1e-07]
[1742489355624,0.81969988,83938.0,83937.0,1e-07]
[1742489355829,0.81669988,83938.0,83937.0,1e-07]
[1742489356248,0.81669988,83938.0,83921.0,0.0001693]
[1742489356249,0.011915,83922.0,83921.0,0.0001693]
[1742489356463,0.550231,83922.0,83921.0,0.0001693]
[1742489357465,0.56891324,83922.0,83921.0,0.0001693]
[1742489357871,0.57591324,83922.0,83921.0,0.0001693]
[1742489358279,0.57191324,83922.0,83921.0,0.0001693]
[1742489358625,0.57391324,83922.0,83921.0,0.0001693]
[1742489359071,0.57091324,83922.0,83921.0,0.0001693]
[1742489359298,0.57491324,83922.0,83921.0,0.0001693]
[1742489359778,0.57091324,83922.0,83921.0,0.0001693]
[1742489360055,0.57291324,83922.0,83921.0,0.0001693]
[1742489361016,0.57291324,83922.0,83921.0,0.11974433]
[1742489361278,0.57291324,83922.0,83921.0,0.0001693]
[1742489362223,0.57091324,83922.0,83921.0,0.0001693]
[1742489362443,0.56991324,83922.0,83921.0,0.0001693]
[1742489362909,0.56891324,83922.0,83921.0,0.0001693]
[1742489363360,0.57091324,83922.0,83921.0,0.0001693]
[1742489363565,0.56991324,83922.0,83921.0,0.0001693]
[1742489364155,0.57091324,83922.0,83921.0,0.0001693]
[1742489368671,0.57091324,83922.0,83921.0,0.11974433]
[1742489368880,0.552231,83922.0,83921.0,0.11974433]
[1742489369399,0.551231,83922.0,83921.0,0.11974433]
[1742489369751,0.550231,83922.0,83921.0,0.11974433]
[1742489370099,0.550231,83922.0,83921.0,0.0001693]
[1742489371625,0.551231,83922.0,83921.0,0.0001693]
[1742489372339,0.552231,83922.0,83921.0,0.0001693]
[1742489372688,0.551231,83922.0,83921.0,0.0001693]
[1742489373128,0.552231,83922.0,83921.0,0.0001693]
[1742489374812,0.552231,83922.0,83921.0,3e-07]
[1742489376304,0.551231,83922.0,83921.0,3e-07]
[1742489376517,0.550231,83922.0,83921.0,3e-07]
[1742489376707,0.553231,83922.0,83921.0,3e-07]
[1742489376949,0.557231,83922.0,83921.0,3e-07]
[1742489377362,0.57591383,83922.0,83921.0,3e-07]
[1742489378516,0.57191383,83922.0,83921.0,3e-07]
[1742489378974,0.57491383,83922.0,83921.0,3e-07]
[1742489382116,0.57191383,83922.0,83921.0,3e-07]
[1742489382496,0.57691383,83922.0,83921.0,3e-07]
[1742489383119,0.57391383,83922.0,83921.0,3e-07]
[1742489383499,0.57791383,83922.0,83921.0,3e-07]
[1742489385074,0.57791383,83922.0,83887.0,0.1]
[1742489385075,0.55027,83909.0,83908.0,7e-07]
[1742489385298,0.69179,83909.0,83908.0,7e-07]
[1742489385501,0.81136503,83909.0,83908.0,7e-07]
[1742489386017,0.66984503,83909.0,83908.0,7e-07]
[1742489386165,0.55027,83909.0,83908.0,7e-07]
[1742489386586,0.55527,83909.0,83908.0,7e-07]
[1742489386969,0.83974335,83909.0,83908.0,7e-07]
[1742489387395,0.90590503,83909.0,83908.0,7e-07]
[1742489387618,0.94680503,83909.0,83908.0,7e-07]
[1742489387800,0.94180503,83909.0,83908.0,7e-07]
[1742489388012,0.96549354,83909.0,83908.0,7e-07]
[1742489388183,0.96249354,83909.0,83908.0,7e-07]
[1742489388382,1.08206857,83909.0,83908.0,7e-07]
[1742489388715,0.96549354,83909.0,83908.0,7e-07]
[1742489388885,0.97049354,83909.0,83908.0,7e-07]
[1742489389264,0.82373354,83909.0,83908.0,7e-07]
[1742489389519,0.96569354,83909.0,83908.0,7e-07]
[1742489389870,0.94700503,83909.0,83908.0,7e-07]
[1742489390068,0.94734323,83909.0,83908.0,7e-07]
[1742489395403,0.96603244,83909.0,83908.0,7e-07]
[1742489395602,0.550309,83896.0,83895.0,8e-07]
[1742489396652,0.56899902,83896.0,83895.0,8e-07]
[1742489397978,0.57499902,83896.0,83895.0,8e-07]
[1742489401392,0.550327,83890.0,83889.0,1e-07]
[1742489401799,0.632827,83890.0,83889.0,1e-07]
[1742489401973,0.550359,83879.0,83878.0,0.01540756]
[1742489403374,0.673359,83879.0,83878.0,5.6e-07]
[1742489404884,0.69205185,83879.0,83878.0,5.6e-07]
[1742489405509,0.550366,83877.0,83876.0,5.6e-07]
[1742489405671,0.692406,83877.0,83876.0,5.6e-07]
[1742489406045,0.550377,83873.0,83872.0,5.3e-07]
[1742489406475,0.550377,83873.0,83854.0,0.0128785]
[1742489406476,0.250431,83855.0,83854.0,0.00597903]
[1742489407268,0.26912553,83855.0,83854.0,0.00597903]
[1742489408415,0.56912553,83855.0,83854.0,0.00597903]
[1742489409636,0.01869453,83855.0,83854.0,0.36406306]
[1742489409835,0.011925,83856.0,83855.0,0.0777]
[1742489410040,0.250429,83856.0,83855.0,0.19727503]
[1742489410445,0.3,83858.0,83856.0,0.0483]
[1742489410646,0.550423,83858.0,83857.0,0.26169503]
[1742489410847,0.550423,83858.0,83857.0,0.14212]
[1742489412581,0.550423,83858.0,83857.0,0.26169503]
[1742489412582,0.550422,83858.0,83857.0,0.26169503]
[1742489413217,0.550422,83858.0,83857.0,0.11957503]
[1742489413422,0.011921,83882.0,83873.0,0.011922]
[1742489413608,0.238419,83886.0,83879.0,0.0469]
[1742489413816,0.250356,83880.0,83879.0,0.0469]
[1742489414237,0.250356,83880.0,83874.0,0.22184]
[1742489414238,0.250358,83880.0,83874.0,0.22184]
[1742489414440,0.238443,83878.0,83875.0,0.26205503]
[1742489414648,0.238447,83876.0,83875.0,0.26205503]
[1742489415052,0.250369,83876.0,83875.0,0.26205503]
[1742489415490,0.250369,83876.0,83875.0,0.16629043]
[1742489415699,0.550387,83870.0,83869.0,0.5676]
[1742489416128,0.238501,83857.0,83855.0,0.0001692]
[1742489416350,0.238501,83857.0,83856.0,0.11957503]
[1742489416554,0.238498,83858.0,83856.0,0.11957503]
[1742489416760,0.250426,83857.0,83856.0,0.02434077]
[1742489417392,0.250418,83860.0,83856.0,1.6439158]
[1742489417393,0.011924,83860.0,83856.0,1.6439158]
[1742489417602,0.238496,83859.0,83857.0,0.11957503]
[1742489417805,0.238491,83861.0,83857.0,0.11957503]
[1742489418019,0.238496,83859.0,83857.0,0.11957503]
[1742489418160,0.238498,83858.0,83857.0,0.11957503]
[1742489418361,0.3,83866.0,83864.0,0.238479]
[1742489418557,0.3,83865.0,83864.0,0.11957503]
[1742489418758,0.550401,83865.0,83864.0,0.11957503]
[1742489419887,0.250391,83869.0,83864.0,0.11957503]
[1742489419888,0.238443,83878.0,83872.0,0.250378]
[1742489420098,0.238449,83876.0,83873.0,0.11957503]
[1742489420298,0.538451,83875.0,83873.0,0.11957503]
[1742489420538,0.238452,83874.0,83873.0,0.11957503]
[1742489420724,0.250374,83874.0,83873.0,0.11957503]
[1742489422140,0.250374,83874.0,83873.0,0.12057503]
[1742489422679,0.550374,83874.0,83873.0,0.001]
[1742489423653,0.550374,83874.0,83873.0,0.004]
[1742489423865,0.550374,83874.0,83873.0,0.003]
[1742489424208,0.250413,83861.0,83860.0,0.16670973]
[1742489424411,0.250413,83861.0,83860.0,0.02330973]
[1742489424412,0.550413,83861.0,83860.0,0.02330973]
[1742489425220,0.250429,83856.0,83855.0,0.0001692]
[1742489426128,0.550429,83856.0,83855.0,0.0001692]
[1742489426446,0.550429,83856.0,83855.0,0.11974423]
[1742489428669,0.550429,83856.0,83855.0,1.61974423]
[1742489428908,0.550429,83856.0,83855.0,0.0001692]
[1742489429374,0.01869439,83857.0,83855.0,1.61974423]
[1742489429503,0.250426,83857.0,83856.0,0.11957503]
[1742489430329,0.250426,83857.0,83855.0,0.0001692]
[1742489430330,0.250429,83856.0,83855.0,0.0001692]
[1742489430528,0.250429,83856.0,83855.0,0.11974423]
[1742489431534,0.25334059,83856.0,83855.0,0.11974423]
[1742489431741,0.25334059,83856.0,83855.0,0.12074423]
[1742489431936,0.25334059,83856.0,83855.0,0.11974423]
[1742489432405,0.25334059,83856.0,83855.0,0.12174423]
[1742489433200,0.25334059,83856.0,83855.0,0.12374423]
[1742489437158,0.250429,83856.0,83855.0,0.12374423]
[1742489437360,0.250429,83856.0,83855.0,0.12174423]
[1742489437812,0.25278294,83856.0,83855.0,0.12174423]
[1742489438161,0.19278294,83856.0,83855.0,0.12274423]
[1742489438336,0.19278294,83856.0,83855.0,0.12074423]
[1742489438759,0.19278294,83856.0,83855.0,0.12174423]
[1742489438986,0.50470794,83856.0,83855.0,0.0021692]
[1742489439782,0.58230794,83856.0,83855.0,0.0021692]
[1742489440423,0.011925,83854.0,83853.0,6.3e-07]
[1742489440685,0.011927,83841.0,83837.0,2.4e-07]
[1742489440868,0.538555,83838.0,83837.0,2.4e-07]
[1742489441108,0.550482,83838.0,83837.0,2.4e-07]
[1742489441335,0.67239135,83838.0,83837.0,2.4e-07]
[1742489442239,0.69589632,83838.0,83837.0,2.4e-07]
[1742489442539,0.70089632,83838.0,83837.0,2.4e-07]
[1742489442969,0.55281632,83838.0,83837.0,2.4e-07]
[1742489443182,0.69589632,83838.0,83837.0,2.4e-07]
[1742489443417,0.55281632,83838.0,83837.0,2.4e-07]
[1742489443611,0.00233432,83838.0,83837.0,0.11957527]
[1742489443768,0.005,83838.0,83837.0,0.11957527]
[1742489443967,0.005,83838.0,83837.0,0.14305726]
[1742489444389,0.011926,83846.0,83837.0,0.15498426]
[1742489444553,0.011926,83849.0,83838.0,0.11957503]
[1742489444771,0.238537,83845.0,83840.0,0.238548]
[1742489445109,0.311926,83847.0,83841.0,0.37004803]
[1742489445462,0.238501,83857.0,83850.0,0.011926]
[1742489445699,0.238507,83855.0,83851.0,0.35809303]
[1742489445952,0.538507,83855.0,83851.0,0.11957503]
[1742489446208,0.538507,83855.0,83845.0,0.238534]
[1742489446209,0.238518,83851.0,83845.0,0.238534]
[1742489446412,0.011926,83848.0,83846.0,0.11957503]
[1742489446615,0.250455,83847.0,83846.0,0.11957503]
[1742489447024,0.550455,83847.0,83846.0,1.61957503]
[1742489447201,0.550455,83847.0,83846.0,1.5]
[1742489447755,0.550455,83847.0,83846.0,0.02410831]
[1742489447889,0.250482,83838.0,83837.0,0.41380024]
[1742489448115,0.250482,83838.0,83837.0,0.53337527]
[1742489448269,0.250482,83838.0,83837.0,2.03337527]
[1742489448716,0.238555,83838.0,83837.0,0.55754095]
[1742489448920,0.011927,83839.0,83837.0,0.55754095]
[1742489449124,0.23855,83840.0,83837.0,0.55754095]
[1742489449417,0.250482,83838.0,83837.0,0.55954095]
[1742489449565,0.238555,83838.0,83837.0,0.55954095]
[1742489449766,0.250482,83838.0,83837.0,0.55954095]
[1742489450178,0.250482,83838.0,83837.0,0.56154095]
[1742489450608,0.250482,83838.0,83837.0,0.55954095]
[1742489450854,0.550482,83838.0,83837.0,0.02616592]
[1742489451055,0.550482,83838.0,83837.0,0.02716592]
[1742489451355,0.550482,83838.0,83837.0,0.02516592]
[1742489451553,0.550482,83838.0,83837.0,0.02616592]
[1742489451963,0.550482,83838.0,83837.0,0.02716592]
[1742489454032,0.3,83838.0,83837.0,0.02716592]
[1742489454223,0.0003386,83847.0,83844.0,0.238538]
[1742489454515,0.011926,83846.0,83845.0,0.11957503]
[1742489454844,0.0003386,83847.0,83846.0,0.238532]
[1742489455022,0.0003386,83847.0,83846.0,0.11957503]
[1742489455228,0.0003386,83847.0,83846.0,0.35810703]
[1742489455431,0.3013386,83847.0,83846.0,0.11957503]
[1742489456038,0.3003386,83847.0,83846.0,0.11957503]
[1742489456243,0.3003386,83847.0,83846.0,0.12057503]
[1742489456389,0.0013386,83847.0,83846.0,0.12057503]
[1742489456589,0.0013386,83847.0,83846.0,0.37103303]
[1742489456816,0.0003386,83847.0,83846.0,0.37103303]
[1742489457181,0.0003386,83847.0,83846.0,1.87203303]
[1742489457393,0.0003386,83847.0,83846.0,1.86010703]
[1742489457394,0.00254596,83847.0,83846.0,1.86010703]
[1742489457640,0.00254596,83847.0,83846.0,1.62157503]
[1742489457850,0.00254596,83847.0,83846.0,2.27390703]
[1742489458050,0.0003386,83847.0,83846.0,2.40037388]
[1742489458494,0.0003386,83847.0,83846.0,2.47947388]
[1742489458800,0.0003386,83874.0,83855.0,0.355431]
[1742489459011,6e-07,83856.0,83855.0,1.20616688]
[1742489459649,6e-07,83874.0,83873.0,0.355377]
[1742489459855,0.011926,83881.0,83880.0,0.250356]
[1742489460004,0.011926,83881.0,83880.0,0.95211188]
[1742489460737,0.011916,83916.0,83904.0,0.238366]
[1742489460950,0.011916,83916.0,83907.0,0.011917]
[1742489461125,0.011916,83916.0,83907.0,0.11957503]
[1742489461126,0.2386922,83909.0,83907.0,0.11957503]
[1742489461740,0.238359,83907.0,83905.0,0.5575994]
[1742489461965,0.311918,83906.0,83905.0,0.4137994]
[1742489462221,0.250317,83893.0,83892.0,0.14384]
[1742489462427,0.011918,83902.0,83872.0,0.1]
[1742489462428,0.011921,83881.0,83874.0,0.4137994]
[1742489462675,0.238455,83873.0,83872.0,0.14388]
[1742489462851,0.250389,83870.0,83869.0,0.11957503]
[1742489463054,0.250389,83870.0,83868.0,0.11957503]
[1742489463055,0.011923,83869.0,83868.0,0.11957503]
[1742489463230,0.011923,83869.0,83867.0,0.56764]
[1742489463231,0.250392,83868.0,83867.0,0.56764]
[1742489463432,0.3,83868.0,83867.0,0.56764]
[1742489464054,0.011923,83870.0,83856.0,0.4137994]
[1742489464276,0.238472,83867.0,83856.0,0.02371649]
[1742489464411,0.250395,83867.0,83865.0,0.10712729]
[1742489464611,0.238468,83869.0,83847.0,0.9813994]
[1742489464612,0.011925,83854.0,83847.0,0.5676]
[1742489464840,0.011925,83854.0,83832.0,0.4137994]
[1742489464841,0.3,83854.0,83838.0,0.238554]
[1742489465035,0.3,83849.0,83847.0,0.238528]
[1742489465457,0.3,83849.0,83846.0,0.23853]
[1742489465666,0.3,83849.0,83847.0,0.238529]
[1742489466132,0.238521,83850.0,83845.0,0.238529]
[1742489466259,0.3,83847.0,83839.0,0.13150203]
[1742489466465,0.3,83848.0,83844.0,0.238537]
[1742489466674,0.23853,83847.0,83841.0,0.238544]
[1742489466879,0.24120296,83847.0,83842.0,0.11957503]
[1742489467083,0.25312896,83847.0,83842.0,0.35811803]
[1742489467303,0.3,83844.0,83842.0,0.11957503]
[1742489467518,0.3,83845.0,83842.0,0.11957503]
[1742489467720,0.00264587,83843.0,83842.0,0.11957503]
[1742489467936,0.00264518,83843.0,83842.0,0.11957503]
[1742489468136,0.011926,83844.0,83841.0,0.001]
[1742489468343,0.311927,83842.0,83841.0,0.001]
[1742489468554,0.30264464,83842.0,83841.0,0.001]
[1742489468754,0.31457164,83842.0,83841.0,0.001]
[1742489469205,0.30264464,83842.0,83841.0,0.001]
[1742489469574,0.3,83840.0,83837.0,2.4e-07]
[1742489469790,0.00264401,83839.0,83837.0,0.23855624]
[1742489470616,0.00264401,83839.0,83837.0,2.4e-07]
[1742489471041,0.00264401,83839.0,83837.0,0.24055724]
[1742489471266,0.00264401,83839.0,83838.0,0.13150203]
[1742489471460,0.238497,83859.0,83851.0,0.011925]
[1742489471664,0.538512,83853.0,83852.0,0.11957503]
[1742489471909,0.550437,83853.0,83852.0,1.5]
[1742489472039,0.550437,83853.0,83845.0,0.4137994]
[1742489472040,0.550458,83846.0,83845.0,0.4137994]
[1742489472448,0.55310201,83846.0,83845.0,0.4137994]
[1742489473274,0.550482,83838.0,83837.0,2.4e-07]
[1742489473890,0.55312601,83838.0,83837.0,2.4e-07]
[1742489474515,0.57182704,83838.0,83837.0,2.4e-07]
[1742489475111,0.550515,83827.0,83821.0,0.001]
[1742489475319,0.550521,83825.0,83821.0,0.001]
[1742489475869,0.55316501,83825.0,83821.0,0.001]
[1742489476041,0.5718687,83825.0,83821.0,0.001]
[1742489477049,0.5718687,83825.0,83794.0,0.10705615]
[1742489477050,0.3,83815.0,83794.0,0.10705615]
[1742489477250,0.55061,83795.0,83794.0,0.09705677]
[1742489477629,0.55316909,83795.0,83794.0,0.09705677]
[1742489477839,0.538686,83792.0,83791.0,0.001]
[1742489478046,0.55062,83792.0,83791.0,0.12057503]
[1742489478265,0.55338359,83792.0,83791.0,0.001]
[1742489479559,0.55338359,83792.0,83791.0,0.002]
[1742489479741,0.30276359,83792.0,83791.0,0.002]
[1742489479973,0.31469759,83792.0,83791.0,0.003]
[1742489480379,0.31469759,83792.0,83791.0,0.002]
[1742489480610,0.31569759,83792.0,83791.0,0.002]
[1742489481019,0.31569759,83792.0,83791.0,0.001]
[1742489481231,0.31769759,83792.0,83791.0,0.001]
[1742489481811,0.31669759,83792.0,83791.0,0.001]
[1742489482015,0.31869759,83792.0,83791.0,0.001]
[1742489483002,0.31769759,83792.0,83791.0,0.001]
[1742489483206,0.31669759,83792.0,83791.0,0.001]
[1742489483612,0.31869759,83792.0,83791.0,0.001]
[1742489484016,0.31669759,83792.0,83791.0,0.001]
[1742489484218,0.32369759,83792.0,83791.0,0.001]
[1742489484819,0.31769759,83792.0,83791.0,0.001]
[1742489485164,0.31869759,83792.0,83791.0,0.001]
[1742489486175,0.31469759,83792.0,83791.0,0.001]
[1742489487128,0.33340902,83792.0,83791.0,0.001]
[1742489487334,0.33540902,83792.0,83791.0,0.001]
[1742489487651,0.33840902,83792.0,83791.0,1e-06]
[1742489487858,0.550623,83791.0,83790.0,2e-07]
[1742489488284,0.55274064,83791.0,83790.0,2e-07]
[1742489490308,0.00211764,83791.0,83790.0,2e-07]
[1742489490577,0.25274064,83791.0,83790.0,2e-07]
[1742489490747,0.25374064,83791.0,83790.0,2e-07]
[1742489491000,0.00211764,83791.0,83790.0,2e-07]
[1742489491202,0.24080664,83791.0,83790.0,2e-07]
[1742489491348,0.25574064,83791.0,83790.0,2e-07]
[1742489491972,0.25574064,83791.0,83790.0,0.0010002]
[1742489492304,0.25274064,83791.0,83790.0,2e-07]
[1742489492451,0.25374064,83791.0,83790.0,2e-07]
[1742489493086,0.00211764,83791.0,83790.0,0.11957523]
[1742489493292,0.240689,83791.0,83790.0,0.11957523]
[1742489493563,0.25467642,83791.0,83790.0,2e-07]
[1742489493765,0.25567642,83791.0,83790.0,2e-07]
[1742489493919,0.25467642,83791.0,83790.0,2e-07]
[1742489494699,0.25267642,83791.0,83790.0,2e-07]
[1742489494895,0.25267642,83791.0,83790.0,0.0010002]
[1742489495101,0.25367642,83791.0,83790.0,0.0010002]
[1742489495513,0.25367642,83791.0,83790.0,2e-07]
[1742489495729,0.25767642,83791.0,83790.0,2e-07]
[1742489497659,0.30517642,83791.0,83790.0,2e-07]
[1742489498272,0.60517642,83791.0,83790.0,2e-07]
[1742489498440,0.60217642,83791.0,83790.0,2e-07]
[1742489498641,0.60017642,83791.0,83790.0,2e-07]
[1742489498869,0.60281536,83791.0,83790.0,2e-07]
[1742489499063,0.62152749,83791.0,83790.0,2e-07]
[1742489499392,0.62452749,83791.0,83790.0,2e-07]
[1742489499793,0.550628,83789.0,83788.0,2e-07]
[1742489500200,0.67223848,83789.0,83788.0,2e-07]
[1742489500754,0.55266345,83789.0,83788.0,2e-07]
[1742489501405,0.55466345,83789.0,83788.0,2e-07]
[1742489502037,0.00403545,83789.0,83788.0,0.11957523]
[1742489502276,0.00403545,83789.0,83788.0,0.37020623]
[1742489502489,0.00403545,83789.0,83788.0,0.38474708]
[1742489502700,0.005,83789.0,83788.0,0.48474708]
[1742489503327,0.0003388,83791.0,83790.0,0.26516585]
[1742489503571,0.0003388,83791.0,83790.0,0.38474088]
[1742489504002,0.00222286,83791.0,83790.0,0.13411588]
[1742489504212,0.0003388,83791.0,83790.0,0.11957503]
[1742489504449,0.00222286,83791.0,83790.0,0.11957503]
[1742489504677,0.00222286,83791.0,83790.0,0.35826603]
[1742489505247,0.00222286,83791.0,83790.0,0.38474088]
[1742489505460,0.0003388,83791.0,83790.0,0.38474088]
[1742489505690,0.0003388,83791.0,83790.0,0.95290152]
[1742489506297,0.0003388,83791.0,83790.0,1.25624152]
[1742489506298,8e-07,83791.0,83790.0,1.25624152]
[1742489506507,0.011929,83825.0,83817.0,0.238615]
[1742489506698,0.238601,83822.0,83818.0,0.26621503]
[1742489506908,0.018707,83827.0,83819.0,1.5]
[1742489507122,0.018707,83827.0,83823.0,0.011929]
[1742489507329,0.018707,83827.0,83826.0,0.250518]
[1742489507528,0.011927,83841.0,83834.0,0.011928]
[1742489507680,0.238547,83841.0,83835.0,2.00469503]
[1742489507880,0.011927,83840.0,83835.0,1.76613503]
[1742489508081,0.03062829,83843.0,83835.0,1.76613503]
[1742489508082,0.01870129,83843.0,83836.0,0.011928]
[1742489508367,0.30007034,83870.0,83837.0,0.14604352]
[1742489508571,0.238489,83862.0,83837.0,0.37716837]
[1742489508788,0.011925,83856.0,83837.0,0.37478352]
[1742489508989,0.250438,83853.0,83837.0,0.37478352]
[1742489509192,0.250417,83860.0,83837.0,0.37478352]
[1742489509409,0.3,83857.0,83837.0,0.37478352]
[1742489509611,0.238505,83856.0,83837.0,0.37478352]
[1742489509819,0.0013388,83838.0,83837.0,0.37978352]
[1742489510068,0.0013388,83838.0,83837.0,0.42728352]
[1742489510270,0.011922,83876.0,83867.0,0.011923]
[1742489510473,0.011922,83876.0,83864.0,0.111924]
[1742489510474,0.011923,83869.0,83868.0,0.26605503]
[1742489510859,0.2387734,83881.0,83869.0,0.26492785]
[1742489511062,0.011923,83871.0,83870.0,0.11957503]
[1742489512330,0.250392,83868.0,83867.0,0.1462]
[1742489512546,0.550392,83868.0,83867.0,0.1462]
[1742489512751,0.550392,83868.0,83860.0,0.56804]
[1742489512752,0.250413,83861.0,83860.0,0.56804]
[1742489512891,0.250413,83861.0,83860.0,0.68761503]
[1742489513296,0.250426,83857.0,83856.0,0.14612]
[1742489513512,0.550416,83860.0,83841.0,0.56788064]
[1742489513513,0.25047,83842.0,83841.0,0.56788]
[1742489513712,0.25047,83842.0,83841.0,0.68745503]
[1742489513948,0.55047,83842.0,83841.0,0.68745503]
[1742489514150,0.250518,83826.0,83825.0,6.4e-07]
[1742489514362,0.250518,83826.0,83825.0,0.11957503]
[1742489514562,0.25279861,83826.0,83825.0,0.11957503]
[1742489515400,0.25279861,83826.0,83815.0,0.23861964]
[1742489515401,0.250547,83816.0,83815.0,0.14604064]
[1742489515605,0.250547,83816.0,83815.0,0.26561567]
[1742489515807,0.25277669,83816.0,83815.0,0.26561567]
[1742489516014,0.250547,83816.0,83815.0,0.11957503]
[1742489516274,0.25277669,83816.0,83815.0,0.11957503]
[1742489516911,0.25277669,83816.0,83815.0,1.62157503]
[1742489517312,0.25277669,83816.0,83815.0,1.62357503]
[1742489517522,0.24084669,83816.0,83815.0,1.62357503]
[1742489518204,0.25277669,83816.0,83815.0,1.62357503]
[1742489519354,0.24205469,83816.0,83815.0,1.62357503]
[1742489519741,0.24205469,83816.0,83815.0,1.62157503]
[1742489520139,0.24205469,83816.0,83815.0,1.62257503]
[1742489520352,0.24205469,83816.0,83815.0,1.62057503]
[1742489520735,0.24205469,83816.0,83815.0,1.62257503]
[1742489521420,0.24205469,83816.0,83815.0,1.62157503]
[1742489521649,0.23012469,83816.0,83815.0,1.62057503]
[1742489521890,0.24205469,83816.0,83815.0,0.002]
[1742489522113,0.24205469,83816.0,83815.0,1e-06]
[1742489522561,0.24205469,83816.0,83815.0,0.001001]
[1742489522801,0.011934,83791.0,83783.0,0.14875632]
[1742489522976,0.250623,83791.0,83783.0,0.14875632]
[1742489523182,0.25271955,83791.0,83790.0,0.02433196]
[1742489523395,0.55271955,83791.0,83790.0,0.02433196]
[1742489524246,0.55271955,83791.0,83790.0,0.0001694]
[1742489524448,0.55371955,83791.0,83790.0,0.0001694]
[1742489524884,0.63241955,83791.0,83790.0,0.0001694]
[1742489525963,0.55571955,83791.0,83790.0,0.0001694]
[1742489526609,0.57443166,83791.0,83790.0,0.0001694]
[1742489528815,0.27443166,83791.0,83790.0,0.0001694]
[1742489529024,0.02380866,83791.0,83790.0,0.0001694]
[1742489529258,0.27443166,83791.0,83790.0,0.0001694]
[1742489529729,0.02380866,83791.0,83790.0,0.11974443]
[1742489529960,0.02380866,83791.0,83790.0,0.26590443]
[1742489529961,0.002,83791.0,83790.0,0.26590443]
[1742489530188,0.002,83791.0,83790.0,0.29337992]
[1742489530424,0.002,83791.0,83790.0,0.29237992]
[1742489530854,0.001,83791.0,83790.0,0.29237992]
[1742489531068,0.011929,83826.0,83815.0,0.250551]
[1742489531289,0.238609,83819.0,83815.0,0.11957503]
[1742489531498,0.00205818,83816.0,83815.0,0.11957503]
[1742489531941,0.00205818,83816.0,83815.0,0.35819503]
[1742489532138,0.00205818,83816.0,83815.0,0.51632603]
[1742489532345,0.2389552,83816.0,83815.0,0.26577503]
[1742489532561,0.25260518,83816.0,83815.0,0.11957503]
[1742489532792,0.250572,83808.0,83807.0,0.14616]
[1742489533017,0.250578,83806.0,83797.0,0.1462]
[1742489533248,0.250578,83806.0,83805.0,0.68761503]
[1742489533540,0.00171998,83806.0,83805.0,0.68761503]
[1742489533755,0.250578,83806.0,83805.0,0.68761503]
[1742489534183,0.24036598,83806.0,83805.0,0.68761503]
[1742489534388,0.00171998,83806.0,83805.0,0.68761503]
[1742489534602,0.00171998,83806.0,83805.0,1.09913688]
[1742489535022,0.00171998,83806.0,83805.0,1.10013688]
[1742489535255,0.011931,83811.0,83807.0,0.238643]
[1742489535473,0.238572,83832.0,83815.0,0.250551]
[1742489535679,0.01193,83821.0,83815.0,0.35819503]
[1742489535858,0.238607,83820.0,83815.0,0.35819503]
[1742489536074,0.238607,83820.0,83815.0,0.11957503]
[1742489536295,0.2508852,83816.0,83815.0,0.26609503]
[1742489536717,0.2508852,83816.0,83805.0,0.57004]
[1742489536718,0.250578,83806.0,83805.0,0.57004]
[1742489536924,0.250578,83806.0,83805.0,0.68961503]
[1742489537065,0.250578,83806.0,83805.0,0.69161503]
[1742489537268,0.23864,83809.0,83805.0,0.69161503]
[1742489537479,0.011931,83812.0,83807.0,0.011932]
[1742489537683,0.011931,83809.0,83808.0,0.11957503]
[1742489537889,0.250568,83809.0,83808.0,0.11957503]
[1742489538302,0.250578,83806.0,83805.0,0.71656]
[1742489538508,0.250578,83806.0,83805.0,0.83613503]
[1742489539366,0.250578,83806.0,83805.0,0.83813503]
[1742489539606,0.250578,83806.0,83805.0,0.83613503]
[1742489540219,0.250578,83806.0,83805.0,0.83630413]
[1742489540422,0.250578,83806.0,83805.0,0.68978413]
[1742489540665,0.550578,83806.0,83805.0,0.0021691]
[1742489540994,0.550578,83806.0,83805.0,1e-07]
[1742489541364,0.67015303,83806.0,83805.0,1e-07]
[1742489541627,0.67015303,83806.0,83790.0,0.0001694]
[1742489541829,0.550623,83791.0,83790.0,0.0001694]
[1742489542397,0.597323,83791.0,83790.0,4e-07]
[1742489542834,0.597323,83791.0,83770.0,0.01]
[1742489542835,0.550644,83784.0,83783.0,9.2e-07]
[1742489544936,0.552644,83784.0,83783.0,9.2e-07]
[1742489545344,0.57135817,83784.0,83783.0,9.2e-07]
[1742489545959,0.57335817,83784.0,83783.0,9.2e-07]
[1742489546369,0.57135817,83784.0,83783.0,9.2e-07]
[1742489546776,0.56935817,83784.0,83783.0,9.2e-07]
[1742489547187,0.57135817,83784.0,83783.0,9.2e-07]
[1742489547387,0.56935817,83784.0,83783.0,9.2e-07]
[1742489547595,0.571438,83784.0,83783.0,9.2e-07]
[1742489547956,0.573438,83784.0,83783.0,9.2e-07]
[1742489548564,0.571438,83784.0,83783.0,9.2e-07]
[1742489549026,0.573438,83784.0,83783.0,9.2e-07]
[1742489549263,0.575438,83784.0,83783.0,9.2e-07]
[1742489549458,0.573438,83784.0,83783.0,9.2e-07]
[1742489549658,0.576438,83784.0,83783.0,9.2e-07]
[1742489552128,0.571438,83784.0,83783.0,9.2e-07]
[1742489552459,0.575438,83784.0,83783.0,9.2e-07]
[1742489552865,0.573438,83784.0,83783.0,9.2e-07]
[1742489553478,0.576438,83784.0,83783.0,9.2e-07]